fUSD/lending_fUSD_20241102
["ID","MTS","AMOUNT","RATE_DAILY","PERIOD"]
[341170746,1730517042396,-500.0,0.00044683,9]
[341170747,1730517042407,-500.0,0.00044683,9]
[341170748,1730517042418,-500.0,0.00044683,9]
[341170749,1730517042428,-500.0,0.00044683,9]
[341170750,1730517042440,-170.54505544,0.00044683,9]
[341170751,1730517042451,-151.0,0.00044683,2]
[341170752,1730517042464,-585.40660587,0.00044685,2]
[341170753,1730517042476,-179.41,0.00044685,2]
[341170754,1730517042487,-150.5,0.00044686,30]
[341170755,1730517042498,-585.40660587,0.00044686,2]
[341170756,1730517042509,-585.40660587,0.00044686,2]
[341170757,1730517042519,-45407.62275158,0.0004469,15]
[341170758,1730517042533,-2618.07402138,0.0004469,15]
[341170759,1730517042621,-1097.65702065,0.000446,2]
[341170760,1730517042634,-1130.21191036,0.000446,2]
[341170761,1730517042646,-1652.44234642,0.000446,2]
[341170762,1730517042659,-2355.29455454,0.000446,2]
[341170773,1730517042921,-231.82763699,0.00044496,120]
[341170774,1730517042934,-500.0,0.00044595,9]
[341170775,1730517042946,-3384.08319786,0.000446,2]
[341170776,1730517042956,-2000.0,0.00044683,9]
[341170777,1730517042967,-581.40952928,0.00044683,9]
[341170778,1730517042979,-680.58,0.00044683,7]
[341170779,1730517042991,-680.58,0.00044683,7]
[341170780,1730517043004,-680.58,0.00044683,7]
[341170781,1730517043017,-680.58,0.00044683,7]
[341170782,1730517043029,-680.58,0.00044683,7]
[341170783,1730517043040,-680.58,0.00044683,7]
[341170784,1730517043054,-680.58,0.00044683,7]
[341170785,1730517043065,-680.58,0.00044683,7]
[341170786,1730517043076,-520.70130972,0.00044689,9]
[341170787,1730517043087,-48778.96970643,0.0004469,15]
[341170792,1730517046052,-500.0,0.00025768,2]
[341170793,1730517046064,-227.1691059,0.00044582,28]
[341170794,1730517046075,-534.49517346,0.00044595,9]
[341170795,1730517046085,-173.85890452,0.00044682,2]
[341170796,1730517046095,-680.58,0.00044683,7]
[341170797,1730517046105,-680.58,0.00044683,7]
[341170798,1730517046116,-680.58,0.00044683,7]
[341170799,1730517046127,-680.58,0.00044683,7]
[341170800,1730517046137,-680.58,0.00044683,7]
[341170801,1730517046148,-680.58,0.00044683,7]
[341170802,1730517046158,-680.58,0.00044683,7]
[341170803,1730517046171,-632.60416572,0.00044683,9]
[341170804,1730517046181,-680.58,0.00044683,7]
[341170805,1730517046192,-680.58,0.00044683,7]
[341170806,1730517046202,-680.58,0.00044683,7]
[341170807,1730517046213,-680.58,0.00044683,7]
[341170808,1730517046225,-9058.7065666,0.0004469,15]
[341170809,1730517046481,-19107.66332696,0.0004469,15]
[341170810,1730517197815,-515.37692188,0.000301,30]
[341170811,1730517197834,-515.37692188,0.000301,30]
[341170812,1730517197845,-1.24615624,0.000301,30]
[341170813,1730517242011,-300.0,0.00019725,2]
[341170814,1730517302022,-300.0,0.00019725,2]
[341170817,1730517424379,-300.0,0.00019725,2]
[341170819,1730517499183,150.0,0.00015342,2]
[341170820,1730517499204,7.17,0.00015342,2]
[341170821,1730517908121,99750.0,0.00016,2]
[341170822,1730517908148,1964277.35918069,0.00016,2]
[341170823,1730517925930,976.3151135,0.000108,2]
[341170824,1730517956056,150.0,0.000159,2]
[341170825,1730517956075,150.0,0.000159,2]
[341170826,1730517956095,150.0,0.000159,2]
[341170827,1730517956115,150.0,0.000159,2]
[341170828,1730517956134,150.0,0.000159,2]
[341170829,1730517956153,150.0,0.000159,2]
[341170830,1730517956175,150.0,0.000159,2]
[341170831,1730517956195,150.0,0.000159,2]
[341170832,1730517956214,150.0,0.000159,2]
[341170833,1730517956233,150.0,0.000159,2]
[341170834,1730517956253,150.0,0.000159,2]
[341170835,1730517956273,150.0,0.000159,2]
[341170836,1730517956293,287.67233209,0.000159,2]
[341170837,1730517956314,254611.23342426,0.000159,2]
[341170838,1730517958093,268.88725127,0.00014,2]
[341170839,1730517983352,150.0,0.00016848,2]
[341170840,1730517983373,350.0,0.00016848,2]
[341170841,1730517984012,-917.42804904,0.00018218,2]
[341170842,1730518019404,1997.18270986,0.000145,2]
[341170846,1730518082761,1056.60792313,0.0001,2]
[341170847,1730518093209,1840.17994629,0.00013,4]
[341170866,1730518232054,-181.628,0.00021518,2]
[341170867,1730518232064,-1162.372,0.00022,2]
[341170875,1730518232288,-423.87608364,0.00022,2]
[341170876,1730518232299,-459.25521106,0.00022,2]
[341170877,1730518232311,-697.89036063,0.00022,2]
[341170878,1730518232323,-320.5070983,0.00022,2]
[341170879,1730518232334,-1530.12866605,0.00022,2]
[341170889,1730518238219,-3196.58257455,0.00022,2]
[341170890,1730518238230,-279.36,0.00022,2]
[341170891,1730518238404,-1277.00386117,0.00022,2]
[341170892,1730518238433,-20733.99610083,0.00022,2]
[341170893,1730518238442,-161.0,0.0002445,2]
[341170894,1730518238451,-448.0,0.000253,2]
[341170895,1730518238460,-500.0,0.00025566,2]
[341170896,1730518238470,-500.0,0.00025574,2]
[341170897,1730518238479,-500.0,0.00025583,2]
[341170898,1730518238488,-500.0,0.00025592,2]
[341170899,1730518238497,-266.40817979,0.00025601,2]
[341170900,1730518238807,-233.59182021,0.00025601,2]
[341170901,1730518238820,-500.0,0.0002561,2]
[341170902,1730518238832,-500.0,0.00025618,2]
[341170903,1730518238842,-500.0,0.00025627,2]
[341170904,1730518238855,-500.0,0.00025636,2]
[341170905,1730518238868,-500.0,0.00025645,2]
[341170906,1730518238880,-500.0,0.00025654,2]
[341170907,1730518238891,-500.0,0.00025662,2]
[341170908,1730518238903,-500.0,0.00025671,2]
[341170909,1730518238915,-500.0,0.0002568,2]
[341170910,1730518238928,-500.0,0.00025689,2]
[341170911,1730518238940,-500.0,0.00025698,2]
[341170912,1730518238951,-500.0,0.00025706,2]
[341170913,1730518238962,-500.0,0.00025715,2]
[341170914,1730518238974,-500.0,0.00025724,2]
[341170915,1730518238986,-500.0,0.00025733,2]
[341170916,1730518238999,-500.0,0.00025742,2]
[341170917,1730518239011,-500.0,0.0002575,2]
[341170918,1730518239022,-500.0,0.00025759,2]
[341170919,1730518239033,-603.08675,0.0003,2]
[341170920,1730518239044,-0.1198546,0.000301,30]
[341170921,1730518239055,-509.28429232,0.0003145,30]
[341170922,1730518239066,-509.09490481,0.0003145,30]
[341170923,1730518239076,-902.87267376,0.0003145,30]
[341170924,1730518239088,-500.0,0.0003145,30]
[341170925,1730518239099,-500.0,0.0003145,30]
[341170926,1730518239111,-576.75818953,0.0003153,7]
[341170927,1730518239123,-603.08675,0.00031632,2]
[341170928,1730518239135,-157.17,0.0003272,2]
[341170929,1730518239146,-987.69,0.0003555,2]
[341170930,1730518239155,-150.0,0.00037365,7]
[341170931,1730518239167,-972.82,0.00037438,2]
[341170932,1730518239180,-200.0,0.00037444,2]
[341170933,1730518239191,-181.91,0.00037603,2]
[341170934,1730518239203,-163.16,0.00037714,2]
[341170935,1730518239214,-150.0,0.00037757,2]
[341170936,1730518239226,-987.69,0.00037814,2]
[341170937,1730518239239,-187.41,0.00039651,2]
[341170938,1730518239253,-987.69,0.00040078,2]
[341170939,1730518239267,-963.44,0.00040808,2]
[341170940,1730518239278,-603.08675,0.00041515,14]
[341170941,1730518239288,-201.60499649,0.00041515,5]
[341170942,1730518239301,-500.47770551,0.00041879,31]
[341170943,1730518239314,-3014.51604068,0.0004188,2]
[341170944,1730518239331,-419.16373027,0.0004188,2]
[341170947,1730518240295,-559.38,0.0004188,2]
[341170948,1730518240309,-3867.98797115,0.0004188,2]
[341170949,1730518240322,-17748.65103922,0.0004188,2]
[341170950,1730518240336,-577.29297945,0.0004188,2]
[341170951,1730518240348,-181.57692557,0.0004188,2]
[341170952,1730518240359,-298.73513448,0.00042,2]
[341170953,1730518240369,-162.68,0.00042,2]
[341170954,1730518240382,-352.97,0.00042187,2]
[341170955,1730518240395,-1000.0,0.00042338,2]
[341170956,1730518240406,-708.28422738,0.00042342,2]
[341170957,1730518240474,-279.40577262,0.00042342,2]
[341170958,1730518240485,-150.0,0.00042575,2]
[341170959,1730518240496,-167.8,0.00042736,2]
[341170960,1730518240506,-232.03961699,0.00042736,65]
[341170961,1730518240519,-79.82938301,0.00042736,65]
[341170962,1730518240530,-284.24753194,0.00043,120]
[341170963,1730518240540,-175.31,0.0004365,120]
[341170964,1730518240550,-150.0,0.00043713,2]
[341170965,1730518240560,-187.41,0.00043858,2]
[341170966,1730518240570,-139.40449729,0.00043898,120]
[341170967,1730518240584,-10.70571471,0.00043898,120]
[341170968,1730518240595,-150.110212,0.00043998,120]
[341170969,1730518240606,-546.54779661,0.00044,31]
[341170992,1730518243364,-311.97764339,0.00044,31]
[341170994,1730518246340,-150.7992621,0.00044,31]
[341170995,1730518246350,-7255.11624422,0.00044,120]
[341170996,1730518246362,-1651.66965,0.00044,120]
[341170998,1730518607177,159.32,0.00015342,2]
[341170999,1730518916504,3233.95,0.000231,30]
[341171000,1730519106363,157.71,0.00015342,2]
[341171019,1730519432483,-1233.71751728,0.00025,2]
[341171020,1730519432496,-102.28248272,0.00025,2]
[341171021,1730519432508,-1592.018059,0.00041235,2]
[341171022,1730519432520,-838.65,0.00041443,2]
[341171023,1730519432530,-150.0,0.00042405,120]
[341171024,1730519432541,-173.58092089,0.00043,2]
[341171025,1730519432554,-652.53192594,0.00043,2]
[341171026,1730519432566,-282.37,0.00043041,2]
[341171027,1730519432577,-486.41,0.00043345,2]
[341171028,1730519432588,-150.0,0.00043358,7]
[341171029,1730519432600,-1000.0,0.00043375,2]
[341171030,1730519432610,-181.07,0.0004338,2]
[341171031,1730519432622,-162.68,0.00043386,2]
[341171032,1730519432634,-1940.13195183,0.0004342,2]
[341171033,1730519432645,-420.35743639,0.00043504,2]
[341171034,1730519432655,-420.35743639,0.00043581,2]
[341171035,1730519432667,-838.65,0.00043706,2]
[341171036,1730519432677,-249.496,0.000439,69]
[341171037,1730519432687,-152.0,0.00043944,3]
[341171038,1730519432700,-150.110212,0.00043998,120]
[341171039,1730519432711,-2566.21282358,0.00044,120]
[341171040,1730519432723,-7224.38589391,0.00044,120]
[341171041,1730519432749,-787.49596051,0.00044,120]
[341171042,1730519432776,-841.56750115,0.00044,120]
[341171043,1730519432789,-15097.27354371,0.00044,120]
[341171044,1730519432799,-5726.5137637,0.00044008,2]
[341171045,1730519432810,-2640.1733268,0.00044038,2]
[341171046,1730519432821,-1290.21936579,0.00044068,2]
[341171047,1730519432834,-20300.41171081,0.00044068,2]
[341171048,1730519432845,-1927.79781344,0.00044068,2]
[341171049,1730519432858,-9237.73580306,0.00044068,2]
[341171050,1730519432868,-150.110212,0.00044098,120]
[341171051,1730519432882,-150.0,0.00044113,2]
[341171052,1730519432892,-150.0,0.00044115,2]
[341171053,1730519432903,-150.0,0.00044168,2]
[341171054,1730519432914,-150.110212,0.00044198,120]
[341171055,1730519432924,-164337.04377295,0.0004422,7]
[341171056,1730519432937,-504.37273481,0.0004422,7]
[341171057,1730519432950,-602.94531427,0.0004422,7]
[341171061,1730519438375,-150.0,0.00044162,2]
[341171062,1730519438386,-2599.56740305,0.0004422,7]
[341171063,1730519438397,-1682.74138119,0.0004422,7]
[341171064,1730519438585,-440.03947304,0.0004422,7]
[341171065,1730519438597,-548.21073066,0.0004422,7]
[341171066,1730519438608,-897.27757178,0.0004422,7]
[341171067,1730519438620,-11547.32135653,0.0004422,7]
[341171068,1730519438632,-25002.97467505,0.0004422,7]
[341171069,1730519438644,-848.12142202,0.0004422,7]
[341171070,1730519438655,-2820.66603228,0.0004422,7]
[341171087,1730519440458,-731.73975,0.0004422,7]
[341171088,1730519440469,-7149.812,0.0004422,7]
[341171089,1730519440480,-1886.52,0.0004422,7]
[341171090,1730519440680,-1213.84773245,0.0004422,7]
[341171092,1730519443217,-150.0,0.000432,2]
[341171093,1730519443226,-5238.63959752,0.0004422,7]
[341171094,1730519443508,-1711.80000004,0.0004422,7]
[341171095,1730519443715,-3300.47997698,0.0004422,7]
[341171096,1730519443726,-149985.71055896,0.0004422,7]
[341171097,1730519443799,-2.08501635,0.0004422,7]
[341171098,1730519443811,-5888.156327,0.0004422,7]
[341171104,1730519446388,-271.26,0.0004422,7]
[341171105,1730519446399,-1572.7748,0.0004422,7]
[341171106,1730519446538,-49665.09026596,0.0004422,7]
[341171112,1730520002946,286.56,0.0001726,2]
[341171113,1730520113563,20023.0,0.0002445,120]
[341171114,1730520295379,157.17,0.00015342,2]
[341171138,1730520638411,-196.159,0.0003,2]
[341171139,1730520638422,-85.391,0.00039671,2]
[341171140,1730520638519,-71.779,0.00039671,2]
[341171141,1730520638528,-754.78,0.00040871,2]
[341171142,1730520638538,-33.28836003,0.00042574,2]
[341171143,1730520638549,-116.71163997,0.00042574,2]
[341171144,1730520638558,-150.0,0.00042755,7]
[341171145,1730520638567,-225.89,0.00042796,2]
[341171146,1730520638580,-808.55197805,0.00042905,2]
[341171147,1730520638591,-191.44802195,0.00042905,2]
[341171148,1730520638600,-243.2,0.00042949,2]
[341171149,1730520638609,-315.22075076,0.00043035,2]
[341171150,1730520638621,-3128.00474924,0.00043035,2]
[341171151,1730520638630,-2711.81,0.00043084,2]
[341171152,1730520638639,-490.16403834,0.00043135,2]
[341171153,1730520638650,-264.61596166,0.00043135,2]
[341171154,1730520638659,-181.07,0.00043211,2]
[341171155,1730520638668,-150.0,0.00043408,2]
[341171156,1730520638677,-163.16,0.0004341,2]
[341171157,1730520638686,-150.0,0.00043537,2]
[341171158,1730520638695,-853.203,0.00043548,2]
[341171159,1730520638704,-360.152,0.00043548,2]
[341171160,1730520638713,-250.04970747,0.00043548,2]
[341171161,1730520638841,-2653.95029253,0.00043548,2]
[341171162,1730520638850,-812.0,0.00043548,2]
[341171163,1730520638859,-150.110212,0.00043598,120]
[341171164,1730520638868,-150.0,0.00043629,2]
[341171165,1730520638877,-150.0,0.00043634,2]
[341171166,1730520638886,-150.0,0.00043641,2]
[341171167,1730520638895,-150.0,0.00043647,2]
[341171168,1730520638904,-150.0,0.00043659,2]
[341171169,1730520638913,-150.0,0.00043671,2]
[341171170,1730520638922,-150.0,0.00043693,2]
[341171171,1730520638931,-150.110212,0.00043698,120]
[341171172,1730520638940,-150.0,0.00043698,2]
[341171173,1730520638950,-150.0,0.00043711,2]
[341171174,1730520638959,-150.0,0.00043753,2]
[341171175,1730520638968,-150.0,0.00043756,2]
[341171176,1730520638976,-150.110212,0.00043798,120]
[341171177,1730520638985,-150.0,0.00043806,2]
[341171178,1730520638994,-150.0,0.00043808,2]
[341171179,1730520639003,-150.0,0.00043812,2]
[341171180,1730520639012,-150.0,0.00043829,2]
[341171181,1730520639021,-150.0,0.00043841,2]
[341171182,1730520639030,-150.0,0.00043842,2]
[341171183,1730520639040,-150.0,0.00043848,2]
[341171184,1730520639050,-150.0,0.00043852,2]
[341171185,1730520639060,-8233.10938634,0.00043855,7]
[341171187,1730520640454,-150.0,0.00043526,2]
[341171188,1730520640464,-105.195627,0.00043741,2]
[341171189,1730520640561,-44.804373,0.00043741,2]
[341171190,1730520640572,-150.0,0.00043763,2]
[341171191,1730520640584,-150.0,0.00043771,2]
[341171192,1730520640596,-150.0,0.00043804,2]
[341171193,1730520640606,-8601.83935814,0.00043855,7]
[341171194,1730520640617,-8947.21879473,0.00043855,7]
[341171195,1730520640631,-8943.78386462,0.00043855,7]
[341171196,1730520640642,-9077.54866152,0.00043855,7]
[341171197,1730520640654,-8943.84023489,0.00043855,7]
[341171218,1730520646348,-522.619975,0.00043855,7]
[341171223,1730520781287,300.0,0.00019725,2]
[341171224,1730521325234,43.56,0.00015342,2]
[341171225,1730521325263,115.76,0.00015342,2]
[341171226,1730521508074,9884.24,0.00016,2]
[341171227,1730521508099,13000.0,0.00016,2]
[341171228,1730521508124,3348649.69946037,0.00016,2]
[341171230,1730521530772,157.71,0.000101,2]
[341171231,1730521530798,1433.77343748,0.000101,2]
[341171234,1730521687717,94212.71448365,0.00015,2]
[341171264,1730521831488,-425.0,0.000246,2]
[341171266,1730521831498,-150.77175,0.0003,2]
[341171268,1730521831508,-150.77175,0.0003,2]
[341171270,1730521831517,-58.11303678,0.0003,2]
[341171272,1730521831528,-297.85848364,0.0003,2]
[341171273,1730521831538,-154.33027489,0.00038595,30]
[341171274,1730521831547,-1678.26109435,0.00038595,2]
[341171275,1730521831558,-827.13712285,0.00038595,2]
[341171276,1730521831604,-696.63711264,0.00038595,2]
[341171277,1730521831615,-5809.96649221,0.00038595,2]
[341171278,1730521831625,-150.77175,0.00038789,2]
[341171279,1730521831634,-679.3,0.00040725,2]
[341171280,1730521831644,-3734.74079403,0.0004188,2]
[341171281,1730521831654,-150.0,0.00042348,2]
[341171282,1730521831664,-3137.34,0.00042569,2]
[341171283,1730521831673,-150.0,0.00042575,7]
[341171284,1730521831683,-448.83889,0.00042575,2]
[341171285,1730521831692,-180.71,0.00042629,2]
[341171286,1730521831702,-243.2,0.00042638,2]
[341171287,1730521831711,-1000.0,0.00042789,2]
[341171288,1730521831721,-1413.5189886,0.000428,60]
[341171289,1730521831730,-181.1,0.0004292,2]
[341171290,1730521831739,-679.3,0.00042989,2]
[341171291,1730521831749,-151.43248185,0.00043386,5]
[341171292,1730521831759,-150.0,0.00043479,2]
[341171293,1730521831768,-590.76006389,0.00043786,2]
[341171294,1730521831780,-1561.51358704,0.00043786,2]
[341171295,1730521831790,-738.0,0.00043795,4]
[341171296,1730521831799,-4852.08192119,0.00043796,2]
[341171297,1730521831917,-1555.48465078,0.00043796,2]
[341171298,1730521831929,-19828.26512803,0.00043796,2]
[341171299,1730521831939,-3538.5443,0.00043796,2]
[341171301,1730521831948,-1870.0932,0.00043796,2]
[341171303,1730521831957,-2500.0,0.00043796,2]
[341171305,1730521831967,-413.1662,0.00043797,2]
[341171307,1730521831976,-222.49386201,0.00043797,28]
[341171308,1730521831986,-18803.6976,0.00043797,2]
[341171309,1730521831995,-148989.78972476,0.00043855,7]
[341171310,1730521832005,-91925.7,0.00043855,7]
[341171311,1730521832014,-4396.88,0.00043855,7]
[341171312,1730521832023,-3600.07,0.00043855,7]
[341171313,1730521832032,-334.39,0.00043855,7]
[341171314,1730521832041,-2134.6,0.00043855,7]
[341171315,1730521832051,-892.79,0.00043855,7]
[341171316,1730521832060,-176.6,0.00043887,2]
[341171317,1730521832069,-176.6,0.00043887,2]
[341171318,1730521832079,-570.50990713,0.00043896,9]
[341171319,1730521832088,-500.0,0.00043896,9]
[341171320,1730521832099,-355.75665859,0.00043896,9]
[341171321,1730521832108,-500.0,0.00043896,9]
[341171322,1730521832117,-500.0,0.00043896,9]
[341171323,1730521832126,-500.0,0.00043896,9]
[341171324,1730521832135,-500.0,0.00043896,9]
[341171325,1730521832144,-500.0,0.00043896,9]
[341171326,1730521832153,-500.0,0.00043896,9]
[341171327,1730521832163,-500.0,0.00043896,9]
[341171328,1730521832174,-500.0,0.00043896,9]
[341171329,1730521832184,-649.14194651,0.00043896,9]
[341171330,1730521832194,-500.0,0.00043896,9]
[341171331,1730521832205,-500.0,0.00043896,9]
[341171332,1730521832215,-537.36030846,0.00043896,9]
[341171333,1730521832224,-500.0,0.00043896,9]
[341171334,1730521832234,-576.67511787,0.00043896,9]
[341171335,1730521832244,-500.0,0.00043896,9]
[341171336,1730521832253,-500.0,0.00043896,9]
[341171337,1730521832263,-500.0,0.00043896,9]
[341171338,1730521832272,-500.0,0.00043896,9]
[341171339,1730521832281,-500.0,0.00043896,9]
[341171340,1730521832290,-500.0,0.00043896,9]
[341171341,1730521832302,-599.59673494,0.00043896,9]
[341171342,1730521832312,-500.0,0.00043896,9]
[341171343,1730521832323,-500.0,0.00043896,9]
[341171344,1730521832332,-500.0,0.00043896,9]
[341171345,1730521832342,-500.0,0.00043896,9]
[341171346,1730521832354,-500.0,0.00043896,9]
[341171347,1730521832364,-208.04846093,0.00043896,16]
[341171348,1730521832374,-161.29696509,0.00043896,9]
[341171349,1730521832385,-332.34372443,0.00043896,9]
[341171350,1730521832394,-500.0,0.00043896,9]
[341171351,1730521832404,-500.0,0.00043896,9]
[341171352,1730521832413,-500.0,0.00043896,9]
[341171353,1730521832422,-697.18,0.00043896,9]
[341171354,1730521832431,-697.18,0.00043896,9]
[341171355,1730521832440,-500.0,0.00043896,9]
[341171356,1730521832450,-500.0,0.00043896,9]
[341171357,1730521832459,-323.02603258,0.00043896,2]
[341171358,1730521832469,-500.0,0.00043896,9]
[341171359,1730521832479,-500.0,0.00043896,9]
[341171360,1730521832488,-500.0,0.00043896,9]
[341171361,1730521832497,-628.36996206,0.00043896,9]
[341171362,1730521832507,-337.89508076,0.00043896,9]
[341171363,1730521832516,-500.0,0.00043896,9]
[341171364,1730521832525,-500.0,0.00043896,9]
[341171365,1730521832535,-500.0,0.00043896,9]
[341171366,1730521832544,-500.0,0.00043896,2]
[341171367,1730521832553,-628.31011399,0.00043896,9]
[341171368,1730521832562,-500.0,0.00043896,9]
[341171369,1730521832571,-500.0,0.00043896,9]
[341171370,1730521832580,-500.0,0.00043896,9]
[341171371,1730521832590,-500.0,0.00043896,9]
[341171372,1730521832602,-500.0,0.00043896,9]
[341171373,1730521832612,-500.0,0.00043896,9]
[341171374,1730521832620,-541.87546064,0.00043896,9]
[341171375,1730521832630,-537.37500544,0.00043896,9]
[341171376,1730521832645,-500.0,0.00043896,9]
[341171377,1730521832655,-208.81630358,0.00043896,120]
[341171378,1730521832664,-245000.0,0.00043897,2]
[341171379,1730521832673,-1841.1158,0.00043897,2]
[341171380,1730521832683,-150.110212,0.00043898,120]
[341171381,1730521832692,-422.86313535,0.00043898,2]
[341171382,1730521832702,-246.004,0.00043898,69]
[341171383,1730521832712,-500.0,0.00043898,9]
[341171384,1730521832722,-500.0,0.00043898,9]
[341171385,1730521832731,-579.13983124,0.00043898,9]
[341171386,1730521832741,-500.0,0.00043898,9]
[341171387,1730521832751,-500.0,0.00043898,9]
[341171388,1730521832766,-500.0,0.00043898,9]
[341171389,1730521832775,-500.0,0.00043898,9]
[341171390,1730521832785,-500.0,0.00043898,9]
[341171391,1730521832794,-500.0,0.00043898,9]
[341171392,1730521832804,-500.0,0.00043898,9]
[341171393,1730521832813,-894.1142,0.00043899,2]
[341171394,1730521832823,-13479.6412,0.00043899,2]
[341171395,1730521832832,-1000.0,0.00043899,2]
[341171396,1730521832842,-177.70967259,0.000439,13]
[341171397,1730521832853,-475.51576362,0.000439,2]
[341171398,1730521832862,-222.49386196,0.0004391,28]
[341171399,1730521832871,-167.8,0.00043922,2]
[341171400,1730521832882,-150.0,0.00043938,2]
[341171401,1730521832891,-176.6,0.00043986,2]
[341171402,1730521832900,-176.6,0.00043986,2]
[341171403,1730521832910,-176.6,0.00043987,2]
[341171404,1730521832919,-815.80436659,0.00043988,2]
[341171405,1730521832929,-700.0,0.0004399,2]
[341171406,1730521832938,-815.80436659,0.0004399,2]
[341171407,1730521832948,-500.0,0.00043995,9]
[341171408,1730521832958,-500.0,0.00043995,9]
[341171409,1730521832967,-500.0,0.00043995,9]
[341171410,1730521832976,-500.0,0.00043995,9]
[341171411,1730521832986,-697.18,0.00043995,9]
[341171412,1730521832995,-500.76060032,0.00043995,2]
[341171413,1730521833005,-615.14,0.00043995,9]
[341171414,1730521833016,-500.0,0.00043995,9]
[341171415,1730521833025,-500.0,0.00043995,9]
[341171416,1730521833035,-500.0,0.00043995,9]
[341171417,1730521833044,-500.0,0.00043996,9]
[341171418,1730521833055,-500.0,0.00043996,9]
[341171419,1730521833064,-500.0,0.00043996,9]
[341171420,1730521833073,-500.0,0.00043996,9]
[341171421,1730521833082,-541.11038363,0.00043996,9]
[341171422,1730521833091,-530.99934065,0.00043996,9]
[341171423,1730521833105,-500.0,0.00043996,9]
[341171424,1730521833114,-541.47141103,0.00043996,9]
[341171425,1730521833124,-20000.0,0.00043996,2]
[341171426,1730521833134,-20000.0,0.00043996,2]
[341171427,1730521833143,-500.0,0.00043996,9]
[341171428,1730521833153,-500.0,0.00043996,9]
[341171429,1730521833163,-538.38147517,0.00043996,9]
[341171430,1730521833172,-583.47679904,0.00043996,9]
[341171431,1730521833182,-500.0,0.00043996,9]
[341171432,1730521833191,-500.0,0.00043996,9]
[341171433,1730521833201,-517.35348495,0.00043996,9]
[341171434,1730521833211,-500.0,0.00043996,9]
[341171435,1730521833220,-528.8836413,0.00043996,9]
[341171436,1730521833230,-593.62425831,0.00043996,9]
[341171437,1730521833240,-509.49113419,0.00043996,9]
[341171438,1730521833250,-534.05729894,0.00043996,9]
[341171439,1730521833259,-506.3436479,0.00043996,9]
[341171440,1730521833269,-543.64577408,0.00043996,9]
[341171441,1730521833279,-500.0,0.00043996,9]
[341171442,1730521833288,-532.46015938,0.00043996,9]
[341171443,1730521833297,-500.0,0.00043996,9]
[341171444,1730521833310,-150.29301603,0.00043996,9]
[341171445,1730521833320,-512.82238341,0.00043996,9]
[341171446,1730521833329,-500.0,0.00043996,9]
[341171447,1730521833339,-565.43973526,0.00043996,9]
[341171448,1730521833350,-547.15863767,0.00043996,9]
[341171449,1730521833359,-512.06451612,0.00043996,9]
[341171450,1730521833368,-500.0,0.00043996,9]
[341171451,1730521833377,-500.0,0.00043996,9]
[341171452,1730521833386,-420.96441542,0.00043996,9]
[341171453,1730521833397,-500.0,0.00043996,9]
[341171454,1730521833407,-500.0,0.00043996,9]
[341171455,1730521833416,-150.0,0.00043996,9]
[341171456,1730521833427,-150.0,0.00043996,9]
[341171457,1730521833440,-500.0,0.00043996,9]
[341171458,1730521833450,-500.0,0.00043996,9]
[341171459,1730521833459,-500.0,0.00043996,9]
[341171460,1730521833469,-500.0,0.00043996,9]
[341171461,1730521833479,-540.06484149,0.00043996,9]